[Event "Queen Rapid Challenge 2024"]
[Site "Bucharest"]
[Date "2024.03.10"]
[Round "4.5"]
[White "Aldea, Maria-Antonia"]
[Black "Cosma, Elena-Luminita"]
[Result "1/2-1/2"]
[ECO "E01"]
[WhiteElo "1855"]
[BlackElo "2238"]
[Annotator "TA"]
[PlyCount "108"]
[EventDate "2024.03.09"]
[EventType "rapid"]
[EventCountry "ROU"]
[SourceTitle "playchess.com"]
[Source "ChessBase"]
[SourceQuality "1"]
[TimeControl "900+10"]

{[%evp 10,108,21,22,58,56,58,-24,0,4,22,4,39,27,30,50,32,18,45,4,8,-37,-39,-85,-96,-92,-93,-89,-102,-110,-91,-111,-66,-66,-51,-63,-18,-68,-72,-87,-74,-98,-76,-87,-99,-88,-48,-81,-69,-60,-14,-13,0,0,0,0,0,0,0,0,0,-11,-12,-14,0,0,0,0,0,0,0,0,0,0,0,-16,0,-3,0,-7,-4,-17,-18,-18,0,-5,0,0,0,-12,0,-25,0,-35,0,-8,0,0,0,0,0]} 1. Nf3 {[%emt 0:00:12]} d5 {[%emt 0:00:11]} 2. g3 {[%emt 0:00:07]} Nf6 {[%emt 0:00:24]} 3. Bg2 {[%emt 0:00:06]} e6 {[%emt 0:00:48]} 4. d4 {[%emt 0:00:12]} c5 {[%emt 0:00:44]} 5. c4 {[%emt 0:00:07]} cxd4 {[%emt 0:00:26]} 6. Nxd4 {[%emt 0:00:28]} dxc4 {[%emt 0:00:37]} 7. Qa4+ {[%emt 0:00:23]} Nbd7 {[%emt 0:02:46]} 8. e3 {[%emt 0:01:32]} ({Besser ist} 8. O-O $14) 8... Bc5 {[%emt 0:00:29] Schwarz hat minimalen Vorteil.} 9. Qxc4 {[%emt 0:00:19]} O-O {[%emt 0:00:11]} 10. O-O {[%emt 0:00:20]} a6 {[%emt 0:00:34]} 11. Nb3 {[%emt 0:00:59]} Be7 {[%emt 0:00:29]} 12. Rd1 {[%emt 0:00:25]} Rb8 {[%emt 0:02:05]} 13. Qe2 {[%emt 0:00:51]} Qc7 {[%emt 0:01:10]} 14. Nd4 {[%emt 0:01:01]} Nc5 {[%emt 0:00:25]} 15. Bd2 {[%emt 0:00:35]} e5 {[%emt 0:00:24]} 16. Nf3 {[%emt 0:00:20]} (16. Rc1 $15) 16... e4 $17 {[%emt 0:00:08]} 17. Nd4 {[%emt 0:10:03]} Bg4 {[%emt 0:00:16]} 18. f3 {[%emt 0:00:00]} exf3 {[%emt 0:00:07]} 19. Bxf3 {[%emt 0:00:00]} Bxf3 {[%emt 0:00:08]} 20. Qxf3 {[%emt 0:00:00]} Nce4 {[%emt 0:00:11]} 21. Nc3 {[%emt 0:00:00]} Nxd2 {[%emt 0:00:09]} 22. Rxd2 {[%emt 0:00:00]} Qe5 {[%emt 0:00:15]} 23. Re1 {[%emt 0:00:00]} (23. Qf4 $11 Qxf4 24. exf4) 23... Bb4 $15 {[%emt 0:00:36]} 24. Rc2 {[%emt 0:00:00]} Rbd8 {[%emt 0:00:14] [#] ...Rxd4 wäre nun fies.} 25. Ree2 {[%emt 0:00:00]} Rd7 {[%emt 0:00:26]} 26. a3 {[%emt 0:00:00]} Bxc3 {[%emt 0:00:12]} 27. Rxc3 {[%emt 0:00:00]} Ne4 {[%emt 0:00:07]} 28. Rcc2 {[%emt 0:00:00]} f5 {[%emt 0:00:38]} 29. Qf1 {[%emt 0:00:00]} Ng5 {[%emt 0:00:18]} (29... g6 $15) 30. Nf3 $11 {[%emt 0:00:00]} Qe7 {[%emt 0:00:31]} 31. Nxg5 {[%emt 0:00:00]} Qxg5 {[%emt 0:00:07]} 32. Qf4 {[%emt 0:00:00]} Qe7 {[%emt 0:00:20]} 33. Red2 {[%emt 0:00:00]} Rfd8 {[%emt 0:00:54]} 34. Rxd7 {[%emt 0:02:50]} Qxd7 {[%emt 0:00:07][%mdl 4096] Endspiel. KQR-KQR} 35. Qf3 {[%emt 0:00:00]} h6 {[%emt 0:00:15]} 36. Rf2 {[%emt 0:00:00]} Qd1+ {[%emt 0:00:40]} 37. Qxd1 {[%emt 0:00:00]} Rxd1+ {[%emt 0:00:06] KR-KR} 38. Kg2 {[%emt 0:00:00]} Rb1 {[%emt 0:00:12]} 39. Kf3 {[%emt 0:00:00]} Kf7 {[%emt 0:00:26]} 40. e4 {[%emt 0:00:00]} Ke6 {[%emt 0:00:25]} 41. exf5+ {[%emt 0:00:00]} Kxf5 {[%emt 0:00:07]} 42. Kg2+ {[%emt 0:00:00]} Ke6 {[%emt 0:00:19]} 43. Rd2 {[%emt 0:00:00]} a5 {[%emt 0:00:17]} 44. Kf2 {[%emt 0:00:07]} b5 {[%emt 0:00:26]} 45. Kg2 {[%emt 0:00:48]} Ke5 {[%emt 0:00:30] Weiss sollte ...Ke4 verhindern.} 46. Kf3 {[%emt 0:00:37]} Rf1+ {[%emt 0:00:47]} 47. Ke2 {[%emt 0:00:30]} Rf7 {[%emt 0:00:14]} 48. Ke3 {[%emt 0:00:10]} Rc7 {[%emt 0:00:11]} 49. Kf3 {[%emt 0:00:09]} g5 {[%emt 0:00:23]} 50. h3 {[%emt 0:00:10]} h5 {[%emt 0:00:10]} 51. Ke3 {[%emt 0:00:10]} Rf7 {[%emt 0:00:26]} 52. Rc2 {[%emt 0:00:13] [#] Und jetzt Rc5+ wäre schön. Die Stellung ist ausgeglichen.} Rd7 {[%emt 0:00:21]} 53. Rc5+ {[%emt 0:00:07]} Rd5 {[%emt 0:00:05]} 54. Rxd5+ {[%emt 0:00:09]} Kxd5 {[%emt 0:00:07] Gewichteter Fehlerwert: Weiß=0.13 (sehr präzise) /Schwarz=0.13 (sehr präzise) .  Fehler:       	Weiß=3     	Schwarz=1     Ungenau:       	Weiß=4     	Schwarz=6     OK:         	Weiß=16    	Schwarz=9     Bester:       	Weiß=2     	Schwarz=3} 1/2-1/2

[Event "Queen Rapid Challenge 2024"]
[Site "Bucharest"]
[Date "2024.03.10"]
[Round "4.6"]
[White "Schiopu, Oana-Magdalena"]
[Black "Ciolacu, Alessia-Mihaela"]
[Result "0-1"]
[ECO "C24"]
[WhiteElo "1850"]
[BlackElo "2175"]
[Annotator "RC"]
[PlyCount "68"]
[EventDate "2024.03.09"]
[EventType "rapid"]
[EventCountry "ROU"]
[SourceTitle "playchess.com"]
[Source "ChessBase"]
[SourceQuality "1"]
[TimeControl "900+10"]

1. e4 {[%emt 0:00:12]} e5 {[%emt 0:00:13]} 2. Bc4 {[%emt 0:00:07]} Nf6 {[%emt 0:00:09]} 3. d3 {[%emt 0:00:07]} d5 {[%emt 0:00:24]} 4. exd5 {[%emt 0:00:15]} Nxd5 {[%emt 0:00:07]} 5. Nf3 {[%emt 0:00:10]} Nc6 {[%emt 0:00:13]} 6. O-O {[%emt 0:00:14]} Bg4 {[%emt 0:00:54]} 7. c3 {[%emt 0:00:24]} Nb6 {[%emt 0:00:37]} 8. Bb3 {[%emt 0:00:33]} Qd7 {[%emt 0:00:14]} 9. Be3 {[%emt 0:01:34]} Be7 {[%emt 0:00:53]} 10. Bc2 {[%emt 0:02:14]} O-O {[%emt 0:00:45]} 11. Nbd2 {[%emt 0:00:10]} f5 {[%emt 0:00:21]} 12. Bxb6 {[%emt 0:00:14]} axb6 {[%emt 0:00:12]} 13. Qe1 {[%emt 0:00:19]} Bf6 {[%emt 0:00:24]} 14. h3 {[%emt 0:00:23]} Bh5 {[%emt 0:00:07]} 15. Nh2 {[%emt 0:00:10]} Kh8 {[%emt 0:00:47]} 16. Kh1 {[%emt 0:01:17]} b5 {[%emt 0:00:25]} 17. a3 {[%emt 0:00:31]} Rae8 {[%emt 0:00:37]} 18. Nhf3 {[%emt 0:01:58]} Re7 {[%emt 0:04:34]} 19. b4 {[%emt 0:01:03]} e4 {[%emt 0:00:27]} 20. dxe4 {[%emt 0:00:25]} fxe4 {[%emt 0:00:23]} 21. Bxe4 {[%emt 0:00:59]} Bxc3 {[%emt 0:00:18]} 22. Rd1 {[%emt 0:00:08]} Bxf3 {[%emt 0:00:44]} 23. Nxf3 {[%emt 0:00:22]} Bxe1 {[%emt 0:00:10]} 24. Rxd7 {[%emt 0:00:07]} Rxd7 {[%emt 0:00:07]} 25. Rxe1 {[%emt 0:00:06]} Re7 {[%emt 0:00:18]} 26. Bxc6 {[%emt 0:00:48]} Rxe1+ {[%emt 0:00:09]} 27. Nxe1 {[%emt 0:00:06]} bxc6 {[%emt 0:00:07]} 28. Nd3 {[%emt 0:00:07]} Ra8 {[%emt 0:00:11]} 29. Ne5 {[%emt 0:00:11]} Rxa3 {[%emt 0:00:16]} 30. Nxc6 {[%emt 0:00:07]} Rc3 {[%emt 0:00:24]} 31. Na5 {[%emt 0:00:11]} c5 {[%emt 0:00:15]} 32. bxc5 {[%emt 0:00:19]} Rxc5 {[%emt 0:00:08]} 33. Kg1 {[%emt 0:00:07]} Rc1+ {[%emt 0:00:11]} 34. Kh2 {[%emt 0:00:06]} b4 {[%emt 0:00:09]} 0-1

[Event "Queen Rapid Challenge 2024"]
[Site "Bucharest"]
[Date "2024.03.10"]
[Round "4.7"]
[White "Pirvulescu, Ekaterina"]
[Black "Fileru, Maria"]
[Result "1-0"]
[ECO "C91"]
[WhiteElo "2091"]
[BlackElo "1822"]
[Annotator "NA RC"]
[PlyCount "55"]
[EventDate "2024.03.09"]
[EventType "rapid"]
[EventCountry "ROU"]
[SourceTitle "playchess.com"]
[Source "ChessBase"]
[SourceQuality "1"]
[TimeControl "900+10"]

1. e4 {[%emt 0:00:11]} e5 {[%emt 0:00:12]} 2. Nf3 {[%emt 0:00:07]} Nc6 {[%emt 0:00:07]} 3. Bb5 {[%emt 0:00:07]} a6 {[%emt 0:00:06]} 4. Ba4 {[%emt 0:00:07]} b5 {[%emt 0:00:06]} 5. Bb3 {[%emt 0:00:05]} Bb7 {[%emt 0:00:06]} 6. O-O {[%emt 0:00:38]} Be7 {[%emt 0:00:28]} 7. c3 {[%emt 0:00:12]} Nf6 {[%emt 0:00:13]} 8. Re1 {[%emt 0:00:26]} O-O {[%emt 0:00:16]} 9. d4 {[%emt 0:00:10]} d6 {[%emt 0:00:36]} 10. Bc2 {[%emt 0:00:30]} Re8 {[%emt 0:00:32]} 11. a3 {[%emt 0:00:29]} h6 {[%emt 0:00:16]} 12. Nbd2 {[%emt 0:00:09]} Bf8 {[%emt 0:00:07]} 13. Nf1 {[%emt 0:00:09]} Nb8 {[%emt 0:01:53]} 14. dxe5 {[%emt 0:01:46]} dxe5 {[%emt 0:01:44]} 15. Qxd8 Rxd8 {[%emt 0:00:06]} 16. Nxe5 {[%emt 0:00:14]} Re8 {[%emt 0:00:22]} 17. f4 {[%emt 0:01:42]} Bd6 {[%emt 0:00:53]} 18. Ng3 {[%emt 0:00:34]} Bxe5 {[%emt 0:00:45]} 19. fxe5 {[%emt 0:00:06]} Rxe5 {[%emt 0:00:07]} 20. Bf4 {[%emt 0:00:12]} Re7 {[%emt 0:00:30]} 21. Rad1 {[%emt 0:00:29]} c6 {[%emt 0:03:16]} 22. Nf5 {[%emt 0:00:39]} Rd7 {[%emt 0:00:27]} 23. Nd6 {[%emt 0:00:30]} c5 {[%emt 0:01:25]} 24. Nxb7 {[%emt 0:00:21]} Rxb7 {[%emt 0:00:08]} 25. Rd8+ {[%emt 0:00:08]} Kh7 {[%emt 0:00:50]} 26. e5+ {[%emt 0:00:11]} g6 {[%emt 0:00:33]} 27. exf6 {[%emt 0:00:07]} a5 {[%emt 0:00:17]} 28. Ree8 {[%emt 0:00:13]} 1-0

[Event "Queen Rapid Challenge 2024"]
[Site "Bucharest"]
[Date "2024.03.10"]
[Round "4.8"]
[White "Schiopu, Andreea-Alexandra"]
[Black "Maria, Lia-Alexandra"]
[Result "0-1"]
[ECO "A57"]
[WhiteElo "1830"]
[BlackElo "1996"]
[Annotator "NA RC"]
[PlyCount "88"]
[EventDate "2024.03.09"]
[EventType "rapid"]
[EventCountry "ROU"]
[SourceTitle "playchess.com"]
[Source "ChessBase"]
[SourceQuality "1"]
[TimeControl "900+10"]

1. Nf3 {[%emt 0:00:11]} Nf6 {[%emt 0:00:12]} 2. d4 {[%emt 0:00:06]} c5 {[%emt 0:00:07]} 3. d5 {[%emt 0:00:10]} g6 {[%emt 0:00:17]} 4. c4 {[%emt 0:00:10]} b5 {[%emt 0:00:16]} 5. Nc3 {[%emt 0:00:38]} b4 {[%emt 0:00:51]} 6. Na4 {[%emt 0:00:47]} d6 {[%emt 0:00:21]} 7. g3 {[%emt 0:00:32]} Bg7 {[%emt 0:00:12]} 8. Bg2 {[%emt 0:00:06]} Bd7 {[%emt 0:00:43]} 9. a3 {[%emt 0:02:48]} Qa5 {[%emt 0:02:19]} 10. axb4 {[%emt 0:02:14]} Qxb4+ {[%emt 0:00:13]} 11. Nc3 {[%emt 0:00:09]} Qxc4 {[%emt 0:00:49]} 12. O-O {[%emt 0:00:16]} Qb4 {[%emt 0:00:22]} 13. Qc2 {[%emt 0:00:51]} O-O {[%emt 0:00:28]} 14. e4 {[%emt 0:01:09]} Qb6 {[%emt 0:01:28]} 15. Nd2 {[%emt 0:01:31]} Na6 {[%emt 0:02:54]} 16. Nc4 {[%emt 0:00:41]} Qb7 {[%emt 0:00:06]} 17. Na5 {[%emt 0:00:34]} Nb4 {[%emt 0:01:04]} 18. Qb3 {[%emt 0:00:48]} Qc7 {[%emt 0:00:14]} 19. Bd2 {[%emt 0:00:41]} Rab8 {[%emt 0:00:18]} 20. Qd1 {[%emt 0:00:06]} Bg4 {[%emt 0:01:06]} 21. f3 {[%emt 0:00:10]} Bc8 {[%emt 0:00:13]} 22. Ne2 {[%emt 0:00:53]} Nd7 {[%emt 0:00:41]} 23. Bxb4 {[%emt 0:00:24]} Rxb4 {[%emt 0:00:07]} 24. Nc6 {[%emt 0:00:11]} Rxb2 {[%emt 0:00:29]} 25. Rxa7 {[%emt 0:00:06]} Qb6 {[%emt 0:00:08]} 26. Nxe7+ {[%emt 0:00:12]} Kh8 {[%emt 0:00:06]} 27. Nxc8 {[%emt 0:00:06]} Rxc8 {[%emt 0:00:34]} 28. Rxd7 {[%emt 0:00:07]} Qb5 {[%emt 0:00:27]} 29. Rxd6 {[%emt 0:01:43]} Rxe2 {[%emt 0:00:49]} 30. Kh1 {[%emt 0:00:18]} Qb2 {[%emt 0:00:23]} 31. Rb6 {[%emt 0:00:35]} Qa2 {[%emt 0:00:23]} 32. Rg1 {[%emt 0:00:44]} Bd4 {[%emt 0:00:09]} 33. Qb1 {[%emt 0:00:14]} Bxg1 {[%emt 0:01:03]} 34. Qxg1 {[%emt 0:00:07]} Qd2 {[%emt 0:00:24]} 35. Rb1 {[%emt 0:00:09]} Qe3 {[%emt 0:00:30]} 36. Qxe3 {[%emt 0:00:25]} Rxe3 {[%emt 0:00:06]} 37. f4 {[%emt 0:00:11]} c4 {[%emt 0:00:10]} 38. e5 {[%emt 0:00:14]} c3 {[%emt 0:00:08]} 39. Rc1 {[%emt 0:00:14]} c2 {[%emt 0:00:17]} 40. Kg1 {[%emt 0:00:06]} Rd3 {[%emt 0:00:08]} 41. Kf2 {[%emt 0:00:11]} Rd1 {[%emt 0:00:07]} 42. Rxc2 {[%emt 0:00:12]} Rxc2+ {[%emt 0:00:07]} 43. Kf3 {[%emt 0:00:06]} Rxd5 {[%emt 0:00:10]} 44. Bf1 {[%emt 0:00:10]} Rxh2 {[%emt 0:00:09]} 0-1

[Event "Queen Rapid Challenge 2024"]
[Site "Bucharest"]
[Date "2024.03.10"]
[Round "4.9"]
[White "Popa, Andra-Maria"]
[Black "Stanciu, Andreea-Briana"]
[Result "0-1"]
[ECO "A26"]
[WhiteElo "1774"]
[BlackElo "1976"]
[Annotator "NA RC"]
[PlyCount "104"]
[EventDate "2024.03.09"]
[EventType "rapid"]
[EventCountry "ROU"]
[SourceTitle "playchess.com"]
[Source "ChessBase"]
[SourceQuality "1"]
[TimeControl "900+10"]

1. c4 {[%emt 0:00:13]} e5 {[%emt 0:00:11]} 2. g3 {[%emt 0:00:08]} Nc6 {[%emt 0:00:08]} 3. Bg2 {[%emt 0:00:10]} f5 {[%emt 0:00:08]} 4. d3 {[%emt 0:00:21]} Nf6 {[%emt 0:00:16]} 5. Nc3 {[%emt 0:00:14]} g6 {[%emt 0:00:12]} 6. e4 {[%emt 0:00:44]} d6 {[%emt 0:00:19]} 7. Nge2 {[%emt 0:00:15]} Bg7 {[%emt 0:00:09]} 8. O-O {[%emt 0:00:13]} O-O {[%emt 0:00:08]} 9. h3 {[%emt 0:00:44]} fxe4 {[%emt 0:00:25]} 10. dxe4 {[%emt 0:00:40]} Be6 {[%emt 0:00:20]} 11. Nd5 {[%emt 0:00:27]} Qd7 {[%emt 0:00:20]} 12. Kh2 {[%emt 0:00:07]} Ne7 {[%emt 0:00:46]} 13. Qd3 {[%emt 0:02:13]} c6 {[%emt 0:00:40]} 14. Nxf6+ {[%emt 0:00:43]} Bxf6 {[%emt 0:00:16]} 15. Bh6 {[%emt 0:00:27]} Rfd8 {[%emt 0:00:41]} 16. Rad1 {[%emt 0:00:58]} d5 {[%emt 0:00:34]} 17. Qf3 {[%emt 0:03:58]} Bg7 {[%emt 0:00:16]} 18. Bxg7 {[%emt 0:00:52]} Kxg7 {[%emt 0:00:06]} 19. cxd5 {[%emt 0:00:15]} cxd5 {[%emt 0:00:08]} 20. exd5 {[%emt 0:00:18]} Bxd5 {[%emt 0:01:03]} 21. Qc3 {[%emt 0:00:17]} Qf5 {[%emt 0:00:59]} 22. g4 {[%emt 0:01:06]} Qf6 {[%emt 0:00:17]} 23. f4 {[%emt 0:00:54]} Bxg2 {[%emt 0:00:22]} 24. Kxg2 {[%emt 0:00:17]} Nd5 {[%emt 0:00:32]} 25. Qf3 {[%emt 0:01:21]} Qc6 {[%emt 0:01:10]} 26. Kh2 {[%emt 0:01:22]} Nxf4 {[%emt 0:01:08]} 27. Qxc6 {[%emt 0:00:15]} bxc6 {[%emt 0:00:07]} 28. Nxf4 {[%emt 0:00:10]} exf4 {[%emt 0:00:08]} 29. Rxd8 Rxd8 {[%emt 0:00:06]} 30. Rxf4 {[%emt 0:00:20]} Rd2+ {[%emt 0:00:06]} 31. Kg3 {[%emt 0:00:06]} Rxb2 {[%emt 0:00:08]} 32. Ra4 {[%emt 0:00:07]} Rb7 {[%emt 0:00:34]} 33. Ra6 {[%emt 0:00:16]} Rc7 {[%emt 0:00:07]} 34. Ra3 {[%emt 0:00:11]} c5 {[%emt 0:00:30]} 35. Kf4 {[%emt 0:00:11]} Kf6 {[%emt 0:00:06]} 36. g5+ {[%emt 0:00:10]} Ke6 {[%emt 0:00:08]} 37. h4 {[%emt 0:00:09]} Kd5 {[%emt 0:00:14]} 38. Rd3+ {[%emt 0:00:12]} Kc4 {[%emt 0:00:08]} 39. Rb3 {[%emt 0:00:09]} Kd4 {[%emt 0:00:12]} 40. Rb8 {[%emt 0:00:17]} Rf7+ {[%emt 0:00:36]} 41. Kg4 {[%emt 0:00:03]} c4 {[%emt 0:00:39]} 42. Rd8+ {[%emt 0:00:11]} Ke3 {[%emt 0:00:19]} 43. Re8+ {[%emt 0:00:08]} Kd3 {[%emt 0:00:07]} 44. Rd8+ {[%emt 0:00:06]} Kc2 {[%emt 0:00:06]} 45. Rc8 {[%emt 0:00:14]} c3 {[%emt 0:00:08]} 46. a4 {[%emt 0:00:10]} a5 {[%emt 0:01:25]} 47. h5 {[%emt 0:00:08]} gxh5+ {[%emt 0:00:11]} 48. Kxh5 {[%emt 0:00:07]} Kb3 {[%emt 0:00:08]} 49. g6 {[%emt 0:00:15]} hxg6+ {[%emt 0:00:07]} 50. Kxg6 {[%emt 0:00:07]} Rf4 {[%emt 0:00:09]} 51. Kg5 {[%emt 0:00:14]} Rc4 {[%emt 0:00:09]} 52. Rb8+ {[%emt 0:00:11]} Kxa4 {[%emt 0:00:07]} 0-1

[Event "Queen Rapid Challenge 2024"]
[Site "Bucharest"]
[Date "2024.03.10"]
[Round "4.10"]
[White "Patru, Alexandra-Ioana"]
[Black "Didiliuc, Dariana-Gabriela"]
[Result "1/2-1/2"]
[ECO "D02"]
[WhiteElo "1838"]
[BlackElo "1917"]
[Annotator "RC"]
[PlyCount "20"]
[EventDate "2024.03.09"]
[EventType "rapid"]
[EventCountry "ROU"]
[SourceTitle "playchess.com"]
[Source "ChessBase"]
[SourceQuality "1"]
[TimeControl "900+10"]

1. d4 {[%emt 0:00:12]} d5 {[%emt 0:00:13]} 2. Nf3 {[%emt 0:00:07]} Nf6 {[%emt 0:00:10]} 3. g3 {[%emt 0:00:07]} e6 {[%emt 0:00:10]} 4. Bg2 {[%emt 0:00:06]} c5 {[%emt 0:00:09]} 5. e3 {[%emt 0:00:14]} Nc6 {[%emt 0:00:10]} 6. O-O {[%emt 0:00:08]} Qb6 {[%emt 0:00:47]} 7. b3 {[%emt 0:00:35]} cxd4 {[%emt 0:00:26]} 8. exd4 {[%emt 0:00:07]} Bd6 {[%emt 0:00:22]} 9. Bb2 {[%emt 0:00:08]} O-O {[%emt 0:00:14]} 10. Nbd2 {[%emt 0:01:05]} Bd7 {[%emt 0:00:47]} 1/2-1/2

[Event "Queen Rapid Challenge 2024"]
[Site "Bucharest"]
[Date "2024.03.10"]
[Round "5.1"]
[White "Bulmaga, Irina"]
[Black "Obada, Ema"]
[Result "1-0"]
[ECO "B12"]
[WhiteElo "2429"]
[BlackElo "1976"]
[Annotator "TA"]
[PlyCount "61"]
[EventDate "2024.03.09"]
[EventType "rapid"]
[EventCountry "ROU"]
[SourceTitle "playchess.com"]
[Source "ChessBase"]
[SourceQuality "1"]
[TimeControl "900+10"]

{[%evp 9,61,2,12,4,8,3,29,5,31,15,16,0,8,0,41,47,38,50,58,18,18,30,28,24,65,9,77,73,77,98,190,197,175,188,426,420,496,506,441,477,612,589,551,579,559,497,477,403,414,329,484,496,477,474]} 1. e4 {[%emt 0:00:13][%cal Be2e4,Be4e5][%mdl 32]} c6 {[%emt 0:00:11]} 2. d4 {[%emt 0:00:07]} d5 {[%emt 0:00:07]} 3. e5 {[%emt 0:00:08]} c5 {[%emt 0:00:06]} 4. dxc5 {[%emt 0:00:07]} e6 {[%emt 0:00:07]} 5. a3 {[%emt 0:00:08]} Bxc5 {[%emt 0:00:07]} 6. b4 {[%emt 0:00:12]} Be7 {[%emt 0:00:07]} 7. Nf3 {[%emt 0:00:11]} f6 {[%emt 0:00:39]} 8. Bb2 {[%emt 0:00:12] Weiß hat minimalen Vorteil.} a5 {[%emt 0:00:11]} 9. b5 {[%emt 0:00:07]} Nd7 {[%emt 0:00:16]} 10. Bd3 {[%emt 0:00:11]} Nh6 {[%emt 0:00:59]} 11. Qe2 {[%emt 0:00:08]} Nc5 {[%emt 0:02:32]} 12. O-O {[%emt 0:00:38]} Nf7 {[%emt 0:00:36]} 13. Nbd2 {[%emt 0:00:32]} O-O {[%emt 0:00:52]} 14. Rfe1 {[%emt 0:01:31]} Bd7 {[%emt 0:00:47]} 15. a4 {[%emt 0:00:33]} Rc8 {[%emt 0:00:33]} 16. Bd4 {[%emt 0:01:25]} f5 {[%emt 0:02:55]} 17. Rec1 {[%emt 0:01:27]} ({Vorzuziehen ist} 17. c4 $14 Re8 18. h3) 17... Be8 {[%emt 0:02:08] [#]} (17... Ng5 $11 {hält das Gleichgewicht.}) 18. c4 $1 $16 {[%emt 0:00:55]} Ng5 {[%emt 0:02:58]} 19. cxd5 {[%emt 0:01:35]} Qxd5 {[%emt 0:00:51]} (19... Nxf3+ $16 20. Nxf3 (20. Qxf3 exd5 21. Bxc5 Bxc5 $14) 20... exd5) 20. Bc4 $18 {[%emt 0:00:27]} Nxf3+ {[%emt 0:00:20]} 21. Nxf3 {[%emt 0:00:07]} Qd7 {[%emt 0:00:47]} (21... Qd8 {war einen Versuch wert.} 22. Bxc5 Rxc5) 22. Rd1 {[%emt 0:01:05] [#] Zielt auf Bxc5 ab.} Ne4 {[%emt 0:00:26]} 23. Bb2 {[%emt 0:00:20]} Qc7 {[%emt 0:00:18]} 24. Bxe6+ {[%emt 0:00:08]} Kh8 {[%emt 0:00:06]} 25. Bxc8 {[%emt 0:01:14]} Qxc8 {[%emt 0:00:06]} 26. Rac1 {[%emt 0:00:14]} Qe6 {[%emt 0:00:10]} 27. Nd2 {[%emt 0:00:17]} Nc5 {[%emt 0:00:17]} 28. Qc4 {[%emt 0:01:02] Schwarz muss nun Ba3 beachten.} Qh6 {[%emt 0:00:09]} 29. Nf3 {[%emt 0:00:47]} Bh5 {[%emt 0:00:09]} (29... Bf7 {ist wohl besser.}) 30. Qd5 {[%emt 0:00:53]} b6 {[%emt 0:00:14]} 31. Ba3 {[%emt 0:00:25] Gewichteter Fehlerwert: Weiß=0.20 (präzise) /Schwarz=0.40.  Fehler:       	Weiß=1     	Schwarz=4     Ungenau:       	Weiß=1     	Schwarz=3     OK:         	Weiß=9     	Schwarz=10    Bester:       	Weiß=3     	---        Stark:        	Weiß=1     	---} 1-0

[Event "Queen Rapid Challenge 2024"]
[Site "Bucharest"]
[Date "2024.03.10"]
[Round "5.2"]
[White "Batagan, Ilinca-Petra"]
[Black "Raeva, Elitsa"]
[Result "1/2-1/2"]
[ECO "B28"]
[WhiteElo "1915"]
[BlackElo "2185"]
[Annotator "RC"]
[PlyCount "111"]
[EventDate "2024.03.09"]
[EventType "rapid"]
[EventCountry "ROU"]
[SourceTitle "playchess.com"]
[Source "ChessBase"]
[SourceQuality "1"]
[TimeControl "900+10"]

1. e4 {[%emt 0:00:13]} c5 {[%emt 0:00:12]} 2. Nf3 {[%emt 0:00:11]} a6 {[%emt 0:00:07]} 3. d4 {[%emt 0:00:30]} cxd4 {[%emt 0:00:07]} 4. Nxd4 {[%emt 0:00:08]} Nf6 {[%emt 0:00:13]} 5. Nc3 {[%emt 0:00:20]} e5 {[%emt 0:00:08]} 6. Nf3 {[%emt 0:01:50]} Bb4 {[%emt 0:02:40]} 7. Bd2 {[%emt 0:01:37]} d6 {[%emt 0:00:38]} 8. Bd3 {[%emt 0:00:16]} O-O {[%emt 0:00:17]} 9. h3 {[%emt 0:00:29]} h6 {[%emt 0:02:19]} 10. O-O {[%emt 0:00:17]} Be6 {[%emt 0:00:07]} 11. a3 {[%emt 0:00:58]} Bc5 {[%emt 0:00:11]} 12. Qe2 {[%emt 0:00:43]} b5 {[%emt 0:00:46]} 13. Be3 {[%emt 0:00:56]} Nbd7 {[%emt 0:00:07]} 14. Nh4 {[%emt 0:03:52]} Rc8 {[%emt 0:01:00]} 15. Nf5 {[%emt 0:00:20]} Bxf5 {[%emt 0:01:05]} 16. exf5 {[%emt 0:00:19]} d5 {[%emt 0:00:53]} 17. Bxc5 {[%emt 0:00:08]} Rxc5 {[%emt 0:00:13]} 18. f3 {[%emt 0:01:08]} Re8 {[%emt 0:00:34]} 19. Qf2 {[%emt 0:02:00]} Nh5 {[%emt 0:00:40]} 20. Rfe1 {[%emt 0:00:51]} Qc7 {[%emt 0:01:32]} 21. Bf1 {[%emt 0:00:24]} d4 {[%emt 0:00:32]} 22. Ne4 {[%emt 0:00:30]} Rxc2 {[%emt 0:00:17]} 23. Qh4 {[%emt 0:00:19]} Ndf6 {[%emt 0:00:18]} 24. a4 {[%emt 0:00:19]} Nxe4 {[%emt 0:00:49]} 25. fxe4 {[%emt 0:00:06]} Nf6 {[%emt 0:00:43]} 26. axb5 {[%emt 0:00:07]} axb5 {[%emt 0:00:07]} 27. b3 {[%emt 0:00:20]} Qb6 {[%emt 0:00:21]} 28. Kh1 {[%emt 0:00:20]} Rec8 {[%emt 0:00:12]} 29. Qg3 {[%emt 0:00:14]} Qb8 {[%emt 0:00:44]} 30. b4 {[%emt 0:00:06]} R8c3 {[%emt 0:00:11]} 31. Qh4 {[%emt 0:00:07]} d3 {[%emt 0:00:25]} 32. Red1 {[%emt 0:00:11]} Qd8 {[%emt 0:00:37]} 33. Ra5 {[%emt 0:00:19]} Rc1 {[%emt 0:00:15]} 34. Qe1 {[%emt 0:00:09]} Rxd1 {[%emt 0:00:16]} 35. Qxd1 {[%emt 0:00:06]} Nxe4 {[%emt 0:00:16]} 36. Qf3 {[%emt 0:00:13]} Qd4 {[%emt 0:00:24]} 37. Ra8+ {[%emt 0:00:11]} Kh7 {[%emt 0:00:07]} 38. f6 {[%emt 0:00:06]} Nf2+ {[%emt 0:00:21]} 39. Kh2 {[%emt 0:00:06]} Qf4+ {[%emt 0:00:07]} 40. Qxf4 {[%emt 0:00:09]} exf4 {[%emt 0:00:06]} 41. fxg7 {[%emt 0:00:10]} Kxg7 {[%emt 0:00:06]} 42. Rd8 {[%emt 0:00:08]} Rc1 {[%emt 0:00:25]} 43. Kg1 {[%emt 0:00:15]} Nxh3+ {[%emt 0:00:28]} 44. gxh3 {[%emt 0:00:08]} d2 {[%emt 0:00:06]} 45. Rxd2 {[%emt 0:00:07]} Rb1 {[%emt 0:00:17]} 46. Rd4 {[%emt 0:00:07]} f3 {[%emt 0:00:06]} 47. Kf2 {[%emt 0:00:12]} Kf6 {[%emt 0:00:06]} 48. Bd3 {[%emt 0:00:08]} Ke5 {[%emt 0:00:12]} 49. Re4+ {[%emt 0:00:08]} Kd5 {[%emt 0:00:05]} 50. Kxf3 {[%emt 0:00:09]} Rb3 {[%emt 0:00:12]} 51. Ke2 {[%emt 0:00:06]} Rb2+ {[%emt 0:00:07]} 52. Kd1 {[%emt 0:00:07]} f5 {[%emt 0:00:09]} 53. Rf4 {[%emt 0:00:08]} Ke5 {[%emt 0:00:06]} 54. Rf1 {[%emt 0:00:22]} f4 {[%emt 0:00:12]} 55. Bxb5 {[%emt 0:00:11]} Rxb4 {[%emt 0:00:07]} 56. Bd3 {[%emt 0:00:13]} 1/2-1/2